fUSD/lending_fUSD_20251224
["ID","MTS","AMOUNT","RATE_DAILY","PERIOD"]
[399609253,1766543434592,-5334.5265692,0.0001685,2]
[399609254,1766543434602,-648.15878501,0.00016853,2]
[399609255,1766543434612,-5334.5265692,0.00016875,2]
[399609256,1766543434623,-648.15878501,0.00016877,2]
[399609257,1766543434635,-2884.74,0.0001688,2]
[399609258,1766543434646,-745.96719208,0.00016887,2]
[399609259,1766543434656,-168.0,0.00016897,2]
[399609260,1766543434666,-5334.5265692,0.000169,2]
[399609261,1766543434676,-172.3372523,0.000169,2]
[399609262,1766543434685,-733.15459312,0.000169,2]
[399609263,1766543434696,-156.65491446,0.000169,2]
[399609264,1766543434706,-648.15878501,0.00016901,2]
[399609265,1766543434717,-648.15878501,0.00016925,2]
[399609266,1766543434727,-5334.5265692,0.00016925,2]
[399609267,1766543434737,-745.96719208,0.0001699,2]
[399609268,1766543434747,-745.96719208,0.0001699,2]
[399609269,1766543434757,-300.0,0.00016999,2]
[399609270,1766543434768,-666.0,0.00016999,2]
[399609271,1766543434778,-1500.0,0.00016999,2]
[399609272,1766543434788,-1500.0,0.00016999,2]
[399609273,1766543434798,-1500.0,0.00016999,2]
[399609274,1766543434808,-800.58404542,0.00016999,2]
[399609275,1766543434820,-699.41595458,0.00016999,2]
[399609276,1766543434831,-1500.0,0.00016999,2]
[399609277,1766543434841,-1500.0,0.00016999,2]
[399609278,1766543434852,-1500.0,0.00016999,2]
[399609279,1766543434862,-1500.0,0.00016999,2]
[399609280,1766543434872,-1500.0,0.00016999,2]
[399609281,1766543434882,-229.49197247,0.00016999,4]
[399609282,1766543434892,-423.34883705,0.00016999,2]
[399609283,1766543434902,-295.26047867,0.00016999,2]
[399609284,1766543434912,-468.81752878,0.00016999,2]
[399609285,1766543434923,-500.0,0.00016999,2]
[399609286,1766543434933,-500.0,0.00016999,2]
[399609287,1766543434943,-257.97683667,0.00016999,2]
[399609288,1766543434954,-500.0,0.00016999,2]
[399609289,1766543434963,-611.38076852,0.00016999,2]
[399609290,1766543434975,-250.0,0.00017,2]
[399609291,1766543434986,-6904.37541273,0.00017,2]
[399609292,1766543434999,-149901.30106342,0.00017,2]
[399609293,1766543435011,-1254.41808677,0.00017,2]
[399609294,1766543435023,-999.0,0.00017,2]
[399609295,1766543435036,-4663.61388761,0.00017,2]
[399609296,1766543435071,-10675.60026792,0.00017,2]
[399609298,1766543438010,-501.2033684,0.00015173,2]
[399609300,1766543438021,-1392.2766316,0.00017,2]
[399609302,1766543438059,-314.66433426,0.00017,2]
[399609303,1766543438113,-741.25880839,0.00017,2]
[399609304,1766543438171,-3253801.90000464,0.00017,2]
[399609305,1766543438183,-17379.97634284,0.00017,2]
[399609306,1766543438195,-7850.99133442,0.00017,2]
[399609307,1766543438207,-588.35815958,0.00017,2]
[399609308,1766543438219,-1684.65757154,0.00017,2]
[399609313,1766543439970,-642.2986497,0.00017,2]
[399609314,1766543439982,-2243.60294719,0.00017,2]
[399609315,1766543440024,-278.84834294,0.00017,2]
[399609316,1766543440080,-653.68413682,0.00017,2]
[399609317,1766543440091,-21274.25175087,0.00017,2]
[399609318,1766543440103,-1877.68199999,0.00017,2]
[399609319,1766543440186,-2525.07250593,0.00017,2]
[399609320,1766543440198,-384.56729251,0.00017,2]
[399609321,1766543440297,-5010.72450022,0.00017,2]
[399609324,1766543440643,-209825.29889645,0.00017,2]
[399609325,1766543440653,-575377.13776765,0.00017,2]
[399609326,1766543440665,-2147.057143,0.00017,2]
[399609327,1766543443083,-4100.7413,0.00016699,2]
[399609328,1766543443094,-47531.81460812,0.00017,2]
[399609329,1766543443295,-804.27294865,0.00017,2]
[399609330,1766543443306,-328.26696821,0.00017,2]
[399609331,1766543443319,-804.9096726,0.00017,2]
[399609332,1766543443330,-878.45672583,0.00017,2]
[399609333,1766543443342,-507.20615774,0.00017,2]
[399609334,1766543443354,-1208.0,0.00017,2]
[399609335,1766543443374,-37504.77446693,0.00017,2]
[399609336,1766543443387,-488.750531,0.00017,2]
[399609337,1766543443412,-18508.1988637,0.00017,2]
[399609338,1766543443423,-872.68780708,0.00017,2]
[399609339,1766543443515,-72.45278622,0.00017,2]
[399609360,1766543446027,-161.04510123,0.000169,2]
[399609361,1766543446037,-5488.59417882,0.00017,2]
[399609362,1766543446190,-900.862616,0.00017,2]
[399609363,1766543446203,-739.94,0.00017,2]
[399609372,1766543548854,357.5152,0.00015073,2]
[399609383,1766543804539,10000.0,0.000226,120]
[399609391,1766544106077,4507.32176499,0.00015123,2]
[399609392,1766544106120,4264.19913124,0.00015123,2]
[399609446,1766544273334,890.0,0.00022,30]
[399609467,1766544525864,502.33995082,0.00015123,2]
[399609468,1766544526031,580.24678196,0.00015123,2]
[399609470,1766544571139,-417.99683017,0.00015173,2]
[399609471,1766544571160,-479.77732969,0.00015173,2]
[399609472,1766544571181,-250.0,0.00015173,2]
[399609473,1766544571203,-276.0,0.00015173,2]
[399609481,1766544632075,-279.0,0.00015507,2]
[399609482,1766544632086,-250.0,0.00015507,2]
[399609483,1766544632096,-751.7,0.00015696,2]
[399609484,1766544632106,-1000.0,0.00015715,2]
[399609485,1766544632116,-999.0,0.00015781,3]
[399609486,1766544632126,-151.0,0.00016132,2]
[399609487,1766544632136,-180.0,0.00016347,2]
[399609488,1766544632146,-1200.0,0.00016397,2]
[399609489,1766544632156,-300.0,0.00016397,2]
[399609490,1766544632166,-300.0,0.00016397,2]
[399609491,1766544632176,-1200.0,0.00016397,2]
[399609492,1766544632187,-614.77943669,0.00016398,2]
[399609493,1766544632198,-500.0,0.00016398,2]
[399609494,1766544632208,-500.0,0.00016398,2]
[399609495,1766544632218,-500.0,0.00016398,2]
[399609496,1766544632229,-500.0,0.00016398,2]
[399609497,1766544632239,-500.0,0.00016398,2]
[399609498,1766544632249,-500.0,0.00016398,2]
[399609499,1766544632258,-5649.4,0.00016398,2]
[399609500,1766544632269,-152272.5141066,0.00016399,2]
[399609501,1766544632281,-42509.02988395,0.00016399,2]
[399609502,1766544632306,-600.0,0.00016398,2]
[399609503,1766544632318,-1270.75062507,0.00016399,2]
[399609512,1766544638104,-151.0,0.00016171,2]
[399609513,1766544638115,-3507.35000025,0.00016399,2]
[399609518,1766544638211,-468.6212166,0.00016399,2]
[399609519,1766544638370,-799971.73416753,0.00016399,2]
[399609520,1766544638382,-180.0,0.0001643,2]
[399609521,1766544638392,-737.988,0.00016438,2]
[399609522,1766544638404,-6720.46,0.00016438,2]
[399609523,1766544638414,-160.6318445,0.00016438,2]
[399609525,1766544638425,-550.0,0.00016498,2]
[399609526,1766544638435,-33504.5899,0.00016499,2]
[399609528,1766544638449,-1000.0,0.00016499,2]
[399609529,1766544638460,-164.3275,0.00016499,2]
[399609530,1766544638471,-180.0,0.00016518,2]
[399609532,1766544638483,-197.89081002,0.00016528,2]
[399609534,1766544638492,-1201.30165185,0.00016528,2]
[399609535,1766544638509,-163.21355269,0.00016528,2]
[399609536,1766544638520,-680.1466091,0.00016528,2]
[399609537,1766544638531,-368.75,0.00016598,2]
[399609538,1766544638542,-180.0,0.00016628,2]
[399609539,1766544638552,-1346.26941216,0.00016659,5]
[399609540,1766544638563,-180.0,0.00016673,2]
[399609541,1766544638573,-250.0,0.0001669,2]
[399609542,1766544638584,-180.0,0.00016702,2]
[399609543,1766544638595,-180.0,0.0001671,2]
[399609544,1766544638607,-505.25,0.00016799,2]
[399609545,1766544638618,-505.25,0.00016799,2]
[399609546,1766544638629,-505.25,0.00016799,2]
[399609547,1766544638640,-505.25,0.00016799,2]
[399609548,1766544638652,-7258.30101545,0.00016799,2]
[399609549,1766544638663,-188.4651769,0.00016799,2]
[399609550,1766544638674,-500.0,0.00016799,2]
[399609551,1766544638684,-500.0,0.00016799,2]
[399609552,1766544638702,-522.31997022,0.00016799,2]
[399609553,1766544638714,-200.0,0.00016864,2]
[399609554,1766544638725,-368.75,0.00016872,2]
[399609555,1766544638739,-706.057237,0.000169,2]
[399609556,1766544638750,-436.87559846,0.000169,2]
[399609557,1766544638762,-456.29445351,0.000169,2]
[399609558,1766544638774,-1955.078915,0.000169,2]
[399609559,1766544638785,-417.74643857,0.000169,2]
[399609560,1766544638796,-501.02283993,0.00016996,2]
[399609561,1766544638808,-2160.07046784,0.00016999,2]
[399609562,1766544638818,-206.68233506,0.00016999,2]
[399609563,1766544638829,-328.17227015,0.00016999,2]
[399609564,1766544638840,-500.0,0.00016999,2]
[399609565,1766544638851,-500.0,0.00016999,2]
[399609566,1766544638861,-158.55032363,0.00016999,2]
[399609567,1766544638876,-500.0,0.00016999,2]
[399609568,1766544638887,-3217178.53824649,0.00017,2]
[399609569,1766544638898,-56843.4061701,0.00017,2]
[399609570,1766544638909,-200.0,0.00017,2]
[399609571,1766544638919,-125505.29959745,0.00017,2]
[399609572,1766544638933,-1193.56551204,0.00017,2]
[399609573,1766544638946,-259.6987719,0.00017,2]
[399609579,1766544640189,-172.33725229,0.000169,2]
[399609580,1766544640200,-418.78145794,0.00017,2]
[399609581,1766544640212,-653.7286811,0.00017,2]
[399609582,1766544640225,-926.039998,0.00017,2]
[399609583,1766544640242,-406.95691,0.00017,2]
[399609584,1766544640256,-291.71752767,0.00017,2]
[399609585,1766544640404,-78624.9656733,0.00017,2]
[399609586,1766544640415,-3072.3204851,0.00017,2]
[399609587,1766544640426,-152.96183,0.00017,2]
[399609588,1766544640436,-30815.8230306,0.00017,2]
[399609589,1766544640446,-250.0,0.00017,2]
[399609590,1766544640456,-13340.1424181,0.00017,2]
[399609591,1766544640470,-114540.3998116,0.00017,2]
[399609592,1766544640480,-180.0,0.00017041,2]
[399609593,1766544640490,-180.0,0.00017084,2]
[399609594,1766544640506,-680.14660901,0.00017116,2]
[399609595,1766544640517,-328.59,0.00017139,2]
[399609596,1766544640527,-368.75,0.00017146,2]
[399609597,1766544640538,-1201.3016518,0.00017158,2]
[399609598,1766544640549,-200.0,0.0001717,2]
[399609599,1766544640560,-180.0,0.00017218,2]
[399609600,1766544640570,-180.0,0.00017227,2]
[399609601,1766544640580,-180.0,0.0001729,2]
[399609602,1766544640591,-168.0,0.00017326,2]
[399609603,1766544640602,-200.0,0.00017342,2]
[399609604,1766544640612,-168.0,0.00017351,2]
[399609605,1766544640623,-168.0,0.00017373,2]
[399609606,1766544640634,-168.0,0.00017387,2]
[399609607,1766544640645,-368.75,0.0001742,2]
[399609608,1766544640655,-200.0,0.00017515,2]
[399609609,1766544640665,-168.0,0.00017519,2]
[399609610,1766544640675,-180.0,0.00017563,2]
[399609611,1766544640686,-168.0,0.00017578,2]
[399609612,1766544640696,-180.0,0.00017582,2]
[399609614,1766544640706,-935.0,0.0001762,2]
[399609615,1766544640716,-180.0,0.0001763,2]
[399609616,1766544640726,-2884.74,0.00017648,2]
[399609617,1766544640739,-1000.0,0.00017679,2]
[399609618,1766544640749,-200.0,0.0001769,2]
[399609619,1766544640760,-368.78,0.00017694,2]
[399609620,1766544640770,-180.0,0.00017696,2]
[399609621,1766544640782,-680.14660901,0.00017703,2]
[399609622,1766544640792,-1201.3016518,0.00017788,2]
[399609623,1766544640803,-180.0,0.0001785,2]
[399609624,1766544640814,-180.0,0.00017885,2]
[399609625,1766544640825,-1865.35,0.00017908,2]
[399609626,1766544640835,-1680.0,0.0001792,2]
[399609627,1766544640846,-420.0,0.0001792,2]
[399609628,1766544640856,-180.0,0.00018004,2]
[399609629,1766544640867,-1680.0,0.0001801,2]
[399609630,1766544640878,-1000.0,0.00018082,2]
[399609631,1766544640889,-167.15,0.00018276,2]
[399609632,1766544640900,-680.14660901,0.00018291,2]
[399609633,1766544640911,-2884.74,0.00018415,2]
[399609634,1766544640921,-1201.3016518,0.00018419,2]
[399609635,1766544640931,-328.59,0.00018509,2]
[399609636,1766544640941,-666.0,0.00018532,2]
[399609637,1766544640951,-300.0,0.00018532,2]
[399609638,1766544640962,-666.0,0.00018532,2]
[399609639,1766544640971,-300.0,0.00018532,2]
[399609640,1766544640982,-499.99,0.00018533,2]
[399609641,1766544640992,-4999.99,0.00018533,2]
[399609642,1766544641002,-1200.96,0.00018533,2]
[399609643,1766544641012,-9999.99,0.00018533,2]
[399609644,1766544641022,-1204.82,0.00018533,2]
[399609645,1766544641032,-9999.99,0.00018533,2]
[399609646,1766544641042,-58031.54,0.00018533,2]
[399609647,1766544641053,-1531.21,0.00018533,2]
[399609648,1766544641064,-999.99,0.00018533,2]
[399609649,1766544641074,-9999.99,0.00018533,2]
[399609650,1766544641085,-9999.99,0.00018533,2]
[399609651,1766544641095,-150.99,0.00018533,2]
[399609652,1766544641106,-299.99,0.00018533,4]
[399609653,1766544641118,-9999.99,0.00018533,2]
[399609654,1766544641128,-9999.99,0.00018533,2]
[399609655,1766544641138,-1000.0,0.0001876,2]
[399609656,1766544641148,-150.99,0.000188,2]
[399609657,1766544641158,-150.99,0.000188,2]
[399609658,1766544641168,-150.99,0.000188,2]
[399609660,1766544641178,-150.99,0.000188,2]
[399609661,1766544641188,-150.99,0.000188,2]
[399609662,1766544641198,-150.99,0.000188,2]
[399609663,1766544641208,-150.99,0.000188,2]
[399609664,1766544641220,-150.99,0.000188,2]
[399609665,1766544641593,-150.99,0.000188,2]
[399609666,1766544641604,-150.99,0.000188,2]
[399609667,1766544641615,-150.99,0.000188,2]
[399609668,1766544641625,-150.99,0.000188,2]
[399609669,1766544641635,-150.99,0.000188,2]
[399609670,1766544641645,-150.99,0.000188,2]
[399609671,1766544641655,-150.99,0.000188,2]
[399609672,1766544641665,-150.99,0.000188,2]
[399609673,1766544641675,-150.99,0.000188,2]
[399609674,1766544641684,-150.99,0.000188,2]
[399609675,1766544641694,-150.99,0.000188,2]
[399609676,1766544641704,-150.99,0.000188,2]
[399609677,1766544641714,-150.99,0.000188,2]
[399609678,1766544641724,-150.99,0.000188,2]
[399609679,1766544641736,-1534.0,0.00018824,2]
[399609680,1766544641747,-680.14660901,0.00018879,2]
[399609681,1766544641757,-164.94462869,0.000189,2]
[399609682,1766544641767,-671.0702352,0.00018999,2]
[399609683,1766544641778,-300.0,0.00018999,2]
[399609684,1766544641788,-55041.41085572,0.00019,2]
[399609685,1766544641798,-300.0,0.00019,2]
[399609686,1766544641808,-1201.3016518,0.00019049,2]
[399609687,1766544641819,-150.99,0.00019147,2]
[399609688,1766544641830,-300.0,0.00019156,2]
[399609689,1766544641839,-12683.4783221,0.00019157,2]
[399609690,1766544641849,-46473.7180247,0.00019157,2]
[399609691,1766544641859,-2884.74,0.00019182,2]
[399609692,1766544641869,-6875.9395279,0.00019432,2]
[399609693,1766544641879,-2976.5881141,0.00019432,2]
[399609694,1766544641889,-25557.4177534,0.00019432,2]
[399609695,1766544641899,-1000.0,0.00019438,2]
[399609696,1766544641909,-680.14660901,0.00019466,2]
[399609697,1766544641919,-1585.0,0.00019585,2]
[399609698,1766544641929,-587.0,0.00019585,2]
[399609699,1766544641939,-2830.0665492,0.00019638,2]
[399609700,1766544641949,-10369.6881455,0.00019638,2]
[399609701,1766544641960,-1000.0,0.00019643,2]
[399609702,1766544641971,-1201.3016518,0.00019679,2]
[399609703,1766544641982,-2351.0,0.00019781,2]
[399609704,1766544641992,-167.15,0.00019784,2]
[399609705,1766544642002,-2884.74,0.00019949,2]
[399609706,1766544642012,-1534.229488,0.00019975,2]
[399609707,1766544642022,-664.1665826,0.00019975,2]
[399609708,1766544642033,-5702.6307163,0.00019975,2]
[399609709,1766544642043,-300.0,0.00019982,2]
[399609710,1766544642052,-3458.0,0.00019983,2]
[399609711,1766544642063,-614.909,0.00019983,2]
[399609712,1766544642072,-1332.259,0.00019983,2]
[399609713,1766544642083,-1609.0,0.00019983,2]
[399609714,1766544642092,-409.0,0.00019983,2]
[399609715,1766544642102,-1263.0,0.00019983,2]
[399609716,1766544642112,-1198.0,0.00019983,2]
[399609717,1766544642122,-250.0,0.00019983,2]
[399609718,1766544642132,-150.0,0.00019983,2]
[399609719,1766544642142,-200.0,0.00019983,2]
[399609720,1766544642152,-152.0,0.00019983,2]
[399609721,1766544642162,-200.0,0.00019983,2]
[399609722,1766544642172,-6533.0,0.00019983,2]
[399609723,1766544642181,-217.814,0.00019983,2]
[399609724,1766544642191,-150.811,0.00019983,2]
[399609725,1766544642201,-4810.241,0.00019983,2]
[399609726,1766544642212,-2430.0,0.00019983,2]
[399609727,1766544642222,-680.14660901,0.00020054,2]
[399609728,1766544642232,-1000.0,0.00020116,2]
[399609729,1766544642241,-505.25,0.00020144,2]
[399609730,1766544642251,-1201.3016518,0.00020309,2]
[399609731,1766544642262,-250.38967152,0.0002049,2]
[399609732,1766544642272,-680.14660901,0.00020642,2]
[399609733,1766544642281,-2884.74,0.00020717,2]
[399609734,1766544642291,-1000.0,0.00020795,2]
[399609735,1766544642301,-1201.3016518,0.0002094,2]
[399609736,1766544642311,-500.41121421,0.00020973,2]
[399609737,1766544642322,-500.38092025,0.00020973,2]
[399609738,1766544642332,-197.19876447,0.00020973,2]
[399609739,1766544642342,-500.0,0.00020973,2]
[399609740,1766544642352,-500.0,0.00020973,2]
[399609741,1766544642361,-500.0,0.00020973,2]
[399609742,1766544642371,-150.01500017,0.00020973,2]
[399609743,1766544642381,-500.0,0.00020973,2]
[399609744,1766544642391,-500.0,0.00020973,2]
[399609745,1766544642400,-500.0,0.00020973,2]
[399609746,1766544642410,-500.0,0.00020973,2]
[399609747,1766544642420,-350.0,0.00021,2]
[399609748,1766544642430,-680.14660901,0.00021229,2]
[399609749,1766544642440,-167.15,0.00021292,2]
[399609750,1766544642450,-456.29445349,0.000213,2]
[399609751,1766544642460,-322.6107,0.00021311,2]
[399609752,1766544642470,-823.0,0.00021404,2]
[399609753,1766544642480,-1474.2,0.00021413,2]
[399609754,1766544642489,-2884.74,0.00021484,2]
[399609755,1766544642499,-1000.0,0.00021521,2]
[399609756,1766544642510,-1000.0,0.00021521,2]
[399609757,1766544642519,-1000.0,0.00021521,2]
[399609758,1766544642529,-1000.0,0.00021521,2]
[399609759,1766544642539,-1000.0,0.00021521,2]
[399609760,1766544642549,-1000.0,0.00021521,2]
[399609761,1766544642560,-1002.73299854,0.00021521,2]
[399609762,1766544642569,-1201.3016518,0.0002157,2]
[399609763,1766544642579,-335.67,0.000216,7]
[399609764,1766544642589,-150.0,0.000216,2]
[399609765,1766544642599,-150.0,0.000216,2]
[399609766,1766544642608,-150.0,0.000216,2]
[399609767,1766544642618,-150.0,0.000216,2]
[399609768,1766544642628,-153.48620936,0.000216,2]
[399609769,1766544642638,-150.0,0.000216,2]
[399609770,1766544642648,-150.0,0.000216,2]
[399609771,1766544642658,-151.59672162,0.000216,2]
[399609772,1766544642667,-150.0,0.000216,2]
[399609773,1766544642677,-150.0,0.000216,2]
[399609774,1766544642687,-150.0,0.000216,2]
[399609775,1766544642697,-1000.0,0.00021608,2]
[399609776,1766544642706,-150.99,0.00021698,2]
[399609777,1766544642717,-16521.58447012,0.00021708,2]
[399609778,1766544642726,-3292.0,0.00021727,2]
[399609779,1766544642741,-500.0,0.00021753,2]
[399609780,1766544642750,-680.14660901,0.00021817,2]
[399609781,1766544642760,-500.0,0.00021917,2]
[399609782,1766544642770,-500.0,0.00021917,2]
[399609783,1766544642781,-500.0,0.00021917,2]
[399609784,1766544642791,-500.0,0.00021917,2]
[399609785,1766544642800,-500.0,0.00021917,2]
[399609786,1766544642810,-500.0,0.00021917,2]
[399609787,1766544642820,-500.0,0.00021917,2]
[399609788,1766544642830,-607.23865289,0.00021917,2]
[399609789,1766544642840,-5000.0,0.00021918,2]
[399609790,1766544642850,-500.0,0.00021918,2]
[399609791,1766544642860,-415.03792982,0.00021918,2]
[399609792,1766544642869,-500.0,0.00021918,2]
[399609793,1766544642880,-751.7,0.00021974,2]
[399609794,1766544642889,-150.0,0.00022,4]
[399609795,1766544642899,-1500.0,0.00022068,2]
[399609796,1766544642908,-1500.0,0.00022068,2]
[399609797,1766544642919,-425.64931547,0.00022068,2]
[399609798,1766544642928,-1502.99717494,0.00022068,2]
[399609799,1766544642938,-502.6195934,0.00022068,2]
[399609800,1766544642947,-399.65287076,0.00022068,2]
[399609801,1766544642957,-6378.77,0.000221,7]
[399609802,1766544642967,-1201.3016518,0.000222,2]
[399609803,1766544642976,-2884.74,0.00022251,2]
[399609806,1766544642986,-154.9,0.000223,7]
[399609808,1766544642995,-500.0,0.00022365,2]
[399609810,1766544643005,-500.0,0.00022366,2]
[399609812,1766544643014,-500.0,0.00022367,2]
[399609813,1766544643023,-499.9999,0.00022368,2]
[399609814,1766544643033,-150.0,0.000224,4]
[399609815,1766544643042,-500.0,0.00022465,2]
[399609816,1766544643052,-200.0,0.000226,2]
[399609817,1766544643061,-1219.85,0.00022603,2]
[399609818,1766544643071,-1609.63317787,0.00022616,2]
[399609819,1766544643081,-1170.69301146,0.00022616,2]
[399609820,1766544643091,-334.5472959,0.0002268,2]
[399609821,1766544643101,-500.0,0.00022739,7]
[399609822,1766544643111,-150.0,0.000228,4]
[399609823,1766544643122,-150.0,0.000228,4]
[399609824,1766544643131,-150.0,0.000228,4]
[399609825,1766544643141,-2404.0,0.000229,2]
[399609826,1766544643150,-306.8140135,0.00022982,2]
[399609827,1766544643160,-3458.0,0.00022983,2]
[399609828,1766544643169,-612.0,0.00022983,2]
[399609829,1766544643179,-1326.0,0.00022983,2]
[399609830,1766544643188,-1609.0,0.00022983,2]
[399609832,1766544643199,-409.0,0.00022983,2]
[399609834,1766544643208,-1263.0,0.00022983,2]
[399609835,1766544643218,-1198.0,0.00022983,2]
[399609836,1766544643227,-150.0,0.00022983,2]
[399609837,1766544643237,-150.0,0.00022983,2]
[399609838,1766544643247,-150.0,0.00022983,2]
[399609839,1766544643257,-150.0,0.00022983,2]
[399609840,1766544643268,-6533.0,0.00022983,2]
[399609842,1766544643277,-150.0,0.00022983,2]
[399609844,1766544643287,-150.0,0.00022983,2]
[399609845,1766544643296,-4807.0,0.00022983,2]
[399609846,1766544643306,-2430.0,0.00022983,2]
[399609847,1766544643316,-247.91832257,0.00023,120]
[399609848,1766544643325,-400.0,0.00023,2]
[399609849,1766544643335,-500.0,0.00023013,12]
[399609850,1766544643345,-2884.74,0.00023019,2]
[399609851,1766544643354,-554.09,0.00023096,2]
[399609852,1766544643364,-150.0,0.000232,4]
[399609853,1766544643374,-500.0,0.00023287,17]
[399609854,1766544643383,-1474.2,0.00023355,2]
[399609855,1766544643393,-1152.0,0.00023393,2]
[399609856,1766544643403,-500.0,0.00023561,22]
[399609857,1766544643413,-1000.0,0.00023572,2]
[399609858,1766544643422,-150.0,0.000236,4]
[399609859,1766544643432,-2884.74,0.00023786,2]
[399609860,1766544643442,-231.27032718,0.00023835,27]
[399609861,1766544643452,-4609.0,0.00023864,2]
[399609862,1766544643461,-285.61,0.00023911,2]
[399609863,1766544643471,-163.21355269,0.00023985,2]
[399609864,1766544643482,-20880.0,0.00024,30]
[399609865,1766544643492,-702.86708974,0.00024,2]
[399609866,1766544643502,-167.34253095,0.00024,4]
[399609867,1766544643511,-170.997015,0.00024,4]
[399609868,1766544643521,-161.36386193,0.00024,4]
[399609869,1766544643531,-257.33467835,0.00024,4]
[399609870,1766544643541,-163.76766148,0.00024,4]
[399609871,1766544643551,-154.07691811,0.00024,4]
[399609872,1766544643561,-156.0209703,0.00024,4]
[399609873,1766544643571,-168.10359293,0.00024,4]
[399609874,1766544643580,-155.57587924,0.00024,4]
[399609875,1766544643590,-346.92554585,0.00024049,2]
[399609876,1766544643600,-249.78,0.00024416,2]
[399609877,1766544643610,-172.14,0.00024419,2]
[399609878,1766544643619,-2884.74,0.00024553,2]
[399609879,1766544643629,-1000.0,0.00024658,2]
[399609880,1766544643639,-948.02,0.00024658,2]
[399609881,1766544643649,-6378.77,0.000247,7]
[399609882,1766544643658,-505.25,0.00024799,2]
[399609883,1766544643668,-505.25,0.00024799,2]
[399609884,1766544643678,-189.241851,0.000248,7]
[399609885,1766544643688,-153.123628,0.000248,7]
[399609886,1766544643698,-151.0,0.000248,7]
[399609887,1766544643708,-151.0,0.000248,7]
[399609888,1766544643717,-151.0,0.000248,7]
[399609889,1766544643727,-153.840017,0.000248,7]
[399609890,1766544643740,-151.0,0.000248,7]
[399609891,1766544643750,-151.0,0.000248,7]
[399609892,1766544643759,-151.0,0.000248,7]
[399609893,1766544643769,-151.0,0.000248,7]
[399609894,1766544643782,-151.0,0.000248,2]
[399609895,1766544643791,-151.0,0.000248,7]
[399609896,1766544643802,-151.0,0.000248,7]
[399609897,1766544643814,-151.0,0.000248,7]
[399609898,1766544643824,-151.0,0.000248,7]
[399609899,1766544643834,-151.0,0.000248,7]
[399609900,1766544643844,-151.0,0.000248,7]
[399609901,1766544643854,-151.0,0.000248,7]
[399609902,1766544643864,-151.0,0.000248,7]
[399609903,1766544643874,-223.572228,0.000248,7]
[399609904,1766544643884,-151.0,0.000248,7]
[399609905,1766544643893,-192.86281183,0.000248,7]
[399609906,1766544643903,-151.0,0.000248,7]
[399609907,1766544643912,-151.0,0.000248,7]
[399609908,1766544643922,-685.135947,0.000248,7]
[399609909,1766544643932,-685.135947,0.000248,7]
[399609910,1766544643942,-685.135947,0.000248,7]
[399609911,1766544643952,-685.135947,0.000248,7]
[399609912,1766544643962,-151.0,0.000248,7]
[399609913,1766544643972,-849.0,0.000248,2]
[399609914,1766544643982,-505.25,0.00024899,2]
[399609915,1766544643992,-505.25,0.000249,2]
[399609916,1766544644002,-150.99,0.00024991,2]
[399609917,1766544644012,-150.99,0.00024991,2]
[399609918,1766544644022,-150.99,0.00024991,2]
[399609919,1766544644032,-1997.98,0.00025,2]